bitfinex/quotes_SOLUSD_20250830
["timestamp","ask_amount","ask_price","bid_price","bid_amount"]
[1756533643977,1e-08,206.48,206.47,39.1]
[1756533644186,1e-08,206.48,206.46,0.03]
[1756533644510,26.69,206.47,206.46,0.03]
[1756533645714,29.95195181,206.47,206.46,0.03]
[1756533646581,34.79527045,206.47,206.46,0.03]
[1756533647091,8.79527045,206.47,206.46,0.03]
[1756533647288,34.79527045,206.47,206.46,0.03]
[1756533647495,8.93743202,206.47,206.46,0.03]
[1756533647881,8.93736316,206.47,206.46,0.03]
[1756533648407,61.61295717,206.47,206.46,0.03]
[1756533649800,34.79520159,206.47,206.46,0.03]
[1756533650009,47.87520159,206.47,206.46,0.03]
[1756533653813,47.93520159,206.47,206.46,0.03]
[1756533657818,61.67295717,206.47,206.46,0.03]
[1756533658007,67.40719635,206.47,206.46,0.03]
[1756533658498,69.34946235,206.47,206.46,0.03]
[1756533660217,74.57023717,206.47,206.46,0.03]
[1756533668532,0.14216157,206.44,206.43,0.03]
[1756533668706,42.46404452,206.44,206.43,0.03]
[1756533668905,43.12404452,206.44,206.43,0.03]
[1756533669320,13.73775558,206.42,206.41,0.03]
[1756533669525,56.05963853,206.42,206.41,0.03]
[1756533669729,56.71963853,206.42,206.41,0.03]
[1756533670403,61.94041335,206.42,206.41,0.03]
[1756533670645,65.79878384,206.42,206.41,0.03]
[1756533671928,70.64327565,206.42,206.41,0.03]
[1756533673138,31.58327565,206.42,206.41,0.03]
[1756533673351,67.3813927,206.42,206.41,0.03]
[1756533674157,70.63226982,206.42,206.41,0.03]
[1756533674307,31.57226982,206.42,206.41,0.03]
[1756533674707,70.63226982,206.42,206.41,0.03]
[1756533675522,67.3813927,206.42,206.41,0.03]
[1756533676134,70.63230148,206.42,206.41,0.03]
[1756533678255,3.25090878,206.42,206.41,0.72]
[1756533678447,43.88428365,206.43,206.41,0.72]
[1756533678643,39.04,206.43,206.41,0.72]
[1756533678865,0.06,206.47,206.41,0.72]
[1756533679178,9.87159287,206.5,206.41,0.72]
[1756533679179,0.06,206.5,206.41,0.72]
[1756533679366,65.04,206.49,206.41,0.72]
[1756533679655,43.88303905,206.49,206.41,0.72]
[1756533680018,26.0,206.46,206.41,0.72]
[1756533680218,44.54303905,206.49,206.41,0.72]
[1756533680418,26.0,206.46,206.41,0.03]
[1756533680641,39.04,206.46,206.41,0.03]
[1756533680839,26.0,206.43,206.41,0.03]
[1756533681244,26.0,206.42,206.41,0.03]
[1756533681743,26.0,206.43,206.41,0.03]
[1756533681940,26.0,206.42,206.41,0.03]
[1756533684247,30.84449181,206.42,206.41,0.03]
[1756533687849,31.50449181,206.42,206.41,0.03]
[1756533688056,34.76523131,206.42,206.41,0.03]
[1756533689172,34.90739288,206.42,206.41,0.03]
[1756533690045,36.84984788,206.42,206.41,0.03]
[1756533690243,31.34535607,206.42,206.41,0.03]
[1756533690449,3.2607395,206.42,206.41,0.03]
[1756533690759,26.0,206.42,206.41,0.03]
[1756533691345,29.26375865,206.42,206.41,0.03]
[1756533691545,26.0,206.42,206.41,0.03]
[1756533691743,29.26375865,206.42,206.41,0.03]
[1756533692443,34.78825046,206.42,206.41,0.03]
[1756533692853,3.26375865,206.42,206.41,0.03]
[1756533693161,0.68,206.42,206.41,0.03]
[1756533693356,3.94375865,206.42,206.41,0.03]
[1756533693557,3.26375865,206.42,206.41,0.03]
[1756533694065,42.26375865,206.42,206.41,0.03]
[1756533694261,3.26375865,206.42,206.41,0.03]
[1756533695046,3.32375865,206.43,206.41,0.03]
[1756533695360,0.06,206.43,206.41,0.03]
[1756533696142,0.06,206.43,206.41,4.87472651]
[1756533699178,0.06,206.43,206.42,18.58224739]
[1756533701971,0.06,206.46,206.42,31.1779261]
[1756533702362,1e-08,206.46,206.42,31.1779261]
[1756533702755,1e-08,206.46,206.44,13.73775558]
[1756533703271,1e-08,206.46,206.44,39.12216157]
[1756533703462,1e-08,206.46,206.45,2.08292057]
[1756533703664,1e-08,206.46,206.45,6.92670841]
[1756533705182,1e-08,206.46,206.45,45.88670841]
[1756533705756,1e-08,206.46,206.45,6.92670841]
[1756533706075,1e-08,206.46,206.45,59.34014085]
[1756533707784,1e-08,206.46,206.45,20.38014085]
[1756533708479,1e-08,206.46,206.45,20.52230242]
[1756533709087,0.06,206.5,206.49,0.14216157]
[1756533709580,0.06,206.5,206.49,57.54060511]
[1756533709764,0.06,206.5,206.49,59.48108011]
[1756533709969,0.06,206.5,206.49,6.78332453]
[1756533710181,0.06,206.5,206.49,59.33891854]
[1756533710977,0.06,206.5,206.49,45.72332453]
[1756533711182,0.06,206.5,206.49,43.78284953]
[1756533711492,0.06,206.5,206.49,45.72351453]
[1756533712164,0.06,206.5,206.49,6.78351453]
[1756533712482,0.06,206.5,206.49,43.78284953]
[1756533712689,0.06,206.5,206.49,45.72351453]
[1756533715689,0.06,206.5,206.49,59.31910854]
[1756533716392,0.74,206.5,206.49,38.92]
[1756533717277,0.06,206.5,206.49,43.76284953]
[1756533717474,0.06,206.5,206.49,57.35844354]
[1756533719380,0.06,206.5,206.49,59.29901354]
[1756533721191,0.06,206.5,206.49,59.44117511]
[1756533725887,0.06,206.5,206.49,64.00578117]
[1756533726706,0.06,206.5,206.49,59.44117511]
[1756533726888,0.06,206.5,206.49,64.00578117]
[1756533729993,1e-08,206.5,206.49,64.49006612]
[1756533733306,0.06,206.56,206.55,57.18236164]
[1756533733473,0.06,206.56,206.55,52.61775558]
[1756533733676,0.06,206.56,206.55,57.18236164]
[1756533733907,0.06,206.56,206.55,62.02380438]
[1756533734090,0.06,206.56,206.55,18.57919832]
[1756533734286,0.06,206.56,206.55,62.02380438]
[1756533736803,0.06,206.56,206.55,23.14380438]
[1756533737005,0.77,206.56,206.55,62.00380438]
[1756533737807,0.77,206.56,206.55,57.43919832]
[1756533737988,0.77,206.56,206.55,23.14380438]
[1756533738188,0.77,206.56,206.55,62.00380438]
[1756533739797,0.06,206.56,206.55,62.00380438]
[1756533740605,0.06,206.56,206.55,63.94352738]
[1756533741018,0.06,206.59,206.56,13.73775558]
[1756533741309,0.06,206.59,206.58,18.16020007]
[1756533742193,0.06,206.59,206.58,23.00093973]
[1756533742383,0.06,206.59,206.58,24.94038073]
[1756533744314,0.06,206.61,206.6,39.59559401]
[1756533744608,0.06,206.61,206.6,87.56480613]
[1756533744802,0.06,206.61,206.6,83.00020007]
[1756533745187,0.06,206.61,206.6,84.93945307]
[1756533746505,0.06,206.61,206.6,89.77972412]
[1756533747494,0.06,206.61,206.6,94.34433018]
[1756533748622,0.06,206.61,206.6,89.77972412]
[1756533748998,0.77,206.61,206.6,89.77972412]
[1756533749194,0.06,206.61,206.6,89.77972412]
[1756533751721,0.06,206.61,206.6,94.34433018]
[1756533753021,0.06,206.62,206.61,0.14216157]
[1756533753524,0.06,206.63,206.61,18.30236164]
[1756533753709,0.06,206.63,206.62,48.34657016]
[1756533754305,0.78,206.65,206.63,13.59559401]
[1756533754512,0.78,206.65,206.64,43.50676763]
[1756533754900,0.06,206.65,206.64,45.44573863]
[1756533755504,0.06,206.65,206.64,50.28507273]
[1756533755715,0.78,206.65,206.64,50.28507273]
[1756533756210,0.78,206.65,206.64,6.7783051]
[1756533756409,0.78,206.65,206.61,13.59559401]
[1756533756737,0.72,206.64,206.62,38.8]
[1756533756913,0.72,206.63,206.62,52.39559401]
[1756533757715,0.72,206.63,206.62,57.23539654]
[1756533758129,0.72,206.63,206.62,18.43539654]
[1756533758331,0.72,206.63,206.6,4.84006067]
[1756533758533,0.72,206.62,206.61,38.78]
[1756533760341,0.72,206.62,206.61,43.62003678]
[1756533762118,0.72,206.62,206.61,48.18464284]
[1756533762436,0.72,206.62,206.61,61.78023685]
[1756533762838,0.78,206.65,206.62,13.59559401]
[1756533763012,0.78,206.65,206.64,4.56460606]
[1756533763218,0.06,206.65,206.64,4.56460606]
[1756533763518,0.06,206.65,206.63,43.34460606]
[1756533763944,0.72,206.64,206.63,13.59559401]
[1756533764124,0.72,206.64,206.63,52.37559401]
[1756533764661,0.72,206.64,206.63,57.21516232]
[1756533764814,0.72,206.64,206.63,43.61956831]
[1756533765242,0.72,206.64,206.63,48.18417437]
[1756533766330,0.72,206.64,206.63,43.61956831]
[1756533767028,0.72,206.64,206.63,48.18417437]
[1756533771245,0.72,206.64,206.63,43.61956831]
[1756533771751,0.72,206.64,206.63,48.18417437]
[1756533773833,0.06,206.65,206.63,61.77976838]
[1756533774132,0.1,206.66,206.65,0.14216157]
[1756533774334,0.1,206.66,206.65,83.04236164]
[1756533775353,0.06,206.67,206.66,13.59559401]
[1756533775554,0.78,206.67,206.66,18.16020007]
[1756533775851,0.06,206.67,206.66,22.99906583]
[1756533776425,0.78,206.67,206.66,22.99906583]
[1756533777356,0.06,206.67,206.66,22.99906583]
[1756533778062,0.72,206.7,206.67,0.14216157]
[1756533778226,0.72,206.7,206.68,38.72]
[1756533778426,0.72,206.7,206.69,4.56460606]
[1756533779041,0.72,206.7,206.69,9.40276949]
[1756533779231,4.56460606,206.75,206.71,0.14216157]
[1756533779232,0.72,206.75,206.71,0.14216157]
[1756533779438,0.72,206.75,206.74,4.56460606]
[1756533779748,0.72,206.75,206.74,43.28460606]
[1756533780453,0.72,206.75,206.74,43.55699332]
[1756533784332,0.1,206.77,206.75,13.59559401]
[1756533784534,0.1,206.77,206.76,56.86020007]
[1756533785024,0.1,206.77,206.76,57.00236164]
[1756533785453,0.1,206.77,206.76,61.66696764]
[1756533785832,0.8,206.77,206.76,38.7]
[1756533786759,0.8,206.77,206.74,4.83699261]
[1756533786949,0.7,206.76,206.74,4.83699261]
[1756533787257,4.66460606,206.77,206.75,38.68]
[1756533787465,4.66460606,206.77,206.72,18.16020007]
[1756533787641,5.26460606,206.76,206.73,38.68]
[1756533787835,0.7,206.75,206.74,38.68]
[1756533788041,5.26460606,206.75,206.69,4.56460606]
[1756533788248,5.26460606,206.74,206.7,38.68]
[1756533788459,0.1,206.77,206.73,4.56460606]
[1756533788640,0.8,206.77,206.74,52.27559401]
[1756533788851,0.8,206.77,206.74,56.84020007]
[1756533789047,0.8,206.77,206.75,4.56460606]
[1756533789248,0.8,206.77,206.76,38.68]
[1756533789663,0.8,206.77,206.76,43.24460606]
[1756533789849,0.1,206.77,206.76,43.24460606]
[1756533790058,0.8,206.77,206.76,43.24460606]
[1756533790252,0.1,206.77,206.76,48.0811315]
[1756533790950,0.1,206.77,206.76,43.51652544]
[1756533791160,0.1,206.77,206.76,48.0811315]
[1756533791367,0.1,206.83,206.77,13.59559401]
[1756533791555,0.8,206.83,206.81,4.56460606]
[1756533791784,0.1,206.83,206.82,38.68]
[1756533792249,0.8,206.83,206.82,43.51512232]
[1756533792450,0.8,206.83,206.82,48.07972838]
[1756533792655,0.1,206.83,206.82,48.07972838]
[1756533793268,0.1,206.83,206.82,61.81748396]
[1756533794764,1e-08,206.83,206.82,61.81748396]
[1756533795156,0.7,206.9,206.87,13.59559401]
[1756533795359,0.7,206.92,206.9,0.14216157]
[1756533795673,3.8734937,207.03,206.91,39.0]
[1756533795871,4.56460606,206.95,206.91,39.0]
[1756533796080,0.7,206.94,206.91,39.0]
[1756533796255,0.7,206.93,206.91,39.0]
[1756533796574,26.0,206.97,206.88,4.56460606]
[1756533796575,0.7,206.92,206.88,4.56460606]
[1756533796773,0.7,206.91,206.85,0.14216157]
[1756533796952,0.7,206.91,206.86,58.11209906]
[1756533797273,0.7,206.9,206.87,4.56460606]
[1756533797473,0.7,206.89,206.88,39.02]
[1756533797852,0.7,206.92,206.88,43.58460606]
[1756533798052,0.7,206.91,206.88,39.02]
[1756533798255,0.7,206.9,206.88,39.02]
[1756533798449,0.7,206.89,206.88,39.02]
[1756533799172,0.7,206.89,206.88,43.85372003]
[1756533799361,0.7,206.89,206.88,4.83372003]
[1756533799559,0.7,206.89,206.88,43.83372003]
[1756533799755,0.7,206.89,206.87,9.39855258]
[1756533800070,4.56460606,206.93,206.88,39.0]
[1756533800274,0.7,206.92,206.88,39.0]
[1756533800576,0.7,206.91,206.87,4.56460606]
[1756533800776,0.7,206.9,206.88,38.98]
[1756533800977,0.7,206.89,206.88,38.98]
[1756533801552,0.7,206.89,206.87,9.3984961]
[1756533801878,0.7,206.93,206.89,13.59559401]
[1756533802063,0.06,206.96,206.92,4.56460606]
[1756533802260,0.7,206.95,206.93,43.56460606]
[1756533802573,0.06,206.96,206.94,39.18]
[1756533802751,0.7,206.95,206.94,39.18]
[1756533802952,0.7,206.95,206.91,1.93653]
[1756533803153,0.7,206.94,206.92,39.16]
[1756533803355,0.7,206.93,206.92,43.99277507]
[1756533803574,0.7,206.93,206.92,48.55738113]
[1756533803778,0.7,206.95,206.92,48.55738113]
[1756533803983,0.7,206.94,206.92,43.99277507]
[1756533804155,4.62460606,206.96,206.92,43.99277507]
[1756533804355,0.7,206.94,206.92,39.16]
[1756533804669,0.7,206.94,206.92,43.99270704]
[1756533804879,0.06,206.96,206.93,4.56460606]
[1756533805075,0.06,206.96,206.94,39.14]
[1756533805270,0.06,206.96,206.95,4.83208504]
[1756533805462,0.06,206.96,206.94,39.14]
[1756533805661,0.7,206.95,206.94,39.14]
[1756533806257,0.7,206.95,206.91,1.936624]
[1756533806458,0.7,206.94,206.92,39.12]
[1756533807283,0.7,206.94,206.92,43.95277731]
[1756533807470,0.7,206.93,206.92,39.12]
[1756533807783,5.26460606,206.93,206.92,39.12]
[1756533811981,0.7,206.93,206.92,39.12]
[1756533812190,5.26460606,206.93,206.92,39.12]
[1756533813068,0.7,206.93,206.92,39.12]
[1756533813269,0.7,206.93,206.9,4.833233]
[1756533813463,0.68,206.92,206.91,38.98]
[1756533815378,0.68,206.92,206.91,38.96]
[1756533815979,5.24460606,206.92,206.91,38.96]
[1756533816607,26.0,206.89,206.8,113.331154]
[1756533816905,4.56460606,206.85,206.81,38.94]
[1756533817270,5.24460606,206.85,206.81,38.94]
[1756533817503,30.83371128,206.89,206.8,103.93096543]
[1756533817504,0.68,206.84,206.8,103.93096543]
[1756533817676,5.24460606,206.83,206.82,38.94]
[1756533817866,5.24460606,206.83,206.8,103.93096543]
[1756533818072,4.83446256,206.85,206.8,103.93096543]
[1756533818073,4.56460606,206.81,206.8,142.87096543]
[1756533818271,5.24460606,206.81,206.8,142.87096543]
[1756533819074,5.24460606,206.81,206.8,103.93096543]
[1756533819269,0.68,206.81,206.79,38.92]
[1756533819474,0.68,206.86,206.8,43.48460606]
[1756533819697,0.68,206.86,206.81,43.74460606]
[1756533820087,5.24460606,206.89,206.83,4.56460606]
[1756533820402,5.24460606,206.89,206.84,39.16]
[1756533820579,0.68,206.88,206.84,39.16]
[1756533820772,0.68,206.87,206.84,39.16]
[1756533821183,0.68,206.87,206.85,4.83442107]
[1756533821398,0.68,206.91,206.86,13.59559401]
[1756533821594,0.68,206.9,206.87,39.16]
[1756533821897,0.68,206.89,206.87,39.16]
[1756533822108,0.68,206.89,206.85,4.83442107]
[1756533822293,0.68,206.89,206.86,39.14]
[1756533822608,4.89188756,206.96,206.87,39.12]
[1756533822609,5.24460606,206.88,206.87,39.12]
[1756533824377,0.68,206.88,206.87,39.12]
[1756533824573,5.24460606,206.88,206.85,39.08]
[1756533824780,0.68,206.87,206.85,39.08]
[1756533824979,13.79775558,206.96,206.89,39.59559401]
[1756533824980,0.06,206.96,206.89,39.59559401]
[1756533825277,4.62460606,206.96,206.91,4.83301918]
[1756533825482,5.30460606,206.96,206.91,4.83301918]
[1756533826102,0.74,206.96,206.91,9.39762524]
[1756533826317,0.06,206.96,206.93,4.56460606]
[1756533826478,0.06,206.96,206.94,39.08]
[1756533826810,0.06,206.96,206.95,18.16020007]
[1756533827179,0.06,206.96,206.95,13.59559401]
[1756533827395,0.06,206.96,206.95,18.42767905]
[1756533827883,0.06,206.96,206.95,22.99228511]
[1756533828803,0.06,206.96,206.95,18.42767905]
[1756533828985,0.06,206.96,206.95,39.06]
[1756533829986,0.06,206.96,206.95,43.89208504]
[1756533831399,0.06,206.96,206.95,48.4566911]
[1756533832599,0.06,206.96,206.95,43.89208504]
[1756533833184,0.06,206.96,206.95,39.06]
[1756533833985,0.06,206.96,206.95,38.98]
[1756533834710,0.06,206.96,206.92,13.73775558]
[1756533834924,4.56460606,206.94,206.89,13.59559401]
[1756533835085,5.24460606,206.93,206.9,38.94]
[1756533835407,0.68,206.92,206.9,38.94]
[1756533835589,5.24460606,206.92,206.88,4.83371752]
[1756533835792,0.68,206.91,206.89,38.94]
[1756533836507,0.68,206.9,206.87,13.59559401]
[1756533836697,0.68,206.92,206.88,38.92]
[1756533836892,5.24460606,206.91,206.88,38.92]
[1756533837209,26.0,206.95,206.88,38.92]
[1756533837412,0.68,206.93,206.89,4.83348639]
[1756533837602,4.56460606,206.91,206.9,38.9]
[1756533837803,5.24460606,206.91,206.9,38.9]
[1756533838302,5.24460606,206.91,206.85,4.83427048]
[1756533838512,4.56460606,206.89,206.86,38.9]
[1756533838703,5.24460606,206.89,206.86,38.9]
[1756533838909,0.68,206.88,206.86,38.9]
[1756533839919,0.68,206.9,206.86,43.73401192]
[1756533840113,0.68,206.89,206.86,43.73401192]
[1756533840317,4.56460606,206.91,206.86,43.73401192]
[1756533840611,0.68,206.89,206.86,43.73401192]
[1756533842409,5.24460606,206.89,206.86,43.73401192]
[1756533842620,0.67,206.88,206.86,38.9]
[1756533842788,0.67,206.88,206.86,43.73414375]
[1756533842992,0.67,206.88,206.84,9.39905521]
[1756533843217,0.67,206.88,206.85,38.84]
[1756533843604,4.56460606,206.89,206.84,4.83444915]
[1756533843800,0.67,206.87,206.85,38.84]
[1756533844909,0.67,206.87,206.85,43.67441843]
[1756533845518,5.23460606,206.86,206.83,0.03]
[1756533845698,4.56460606,206.84,206.83,0.03]
[1756533846242,5.23460606,206.84,206.83,0.03]
[1756533846398,5.23460606,206.84,206.8,38.89]
[1756533846399,5.23460606,206.84,206.8,0.03]
[1756533846597,35.12921212,206.81,206.78,0.03]
[1756533846905,4.56460606,206.8,206.78,43.7260203]
[1756533847125,4.56460606,206.8,206.78,38.89]
[1756533847819,0.67,206.82,206.78,43.72603085]
[1756533848111,4.56460606,206.8,206.78,43.72603085]
[1756533848312,0.67,206.84,206.78,43.72603085]
[1756533848509,4.56460606,206.82,206.79,13.59559401]
[1756533848720,4.56460606,206.8,206.78,43.72603085]
[1756533848905,4.56460606,206.79,206.78,0.03]
[1756533849105,4.56460606,206.79,206.78,43.70605764]
[1756533849516,0.67,206.82,206.78,43.70605764]
[1756533849722,4.56460606,206.79,206.78,43.70605764]
[1756533850037,5.23460606,206.79,206.78,38.87]
[1756533850943,5.23460606,206.79,206.78,0.03]
[1756533851234,10.07044174,206.79,206.74,38.82]
[1756533851438,4.56460606,206.75,206.73,38.82]
[1756533851605,5.23460606,206.74,206.73,38.82]
[1756533851803,5.23460606,206.74,206.68,9.40300358]
[1756533852018,4.56460606,206.73,206.69,38.82]
[1756533852202,5.23460606,206.73,206.69,38.82]
[1756533852404,5.23460606,206.73,206.69,43.6580066]
[1756533853201,4.56460606,206.74,206.69,48.22261266]
[1756533853420,5.23460606,206.74,206.69,48.22261266]
[1756533853602,5.23460606,206.74,206.69,43.6580066]
[1756533854009,5.23460606,206.74,206.69,4.8380066]
[1756533854306,5.23460606,206.74,206.7,38.8]
[1756533854508,5.23460606,206.74,206.71,4.83769532]
[1756533854707,5.23460606,206.74,206.72,38.84]
[1756533854913,5.23460606,206.74,206.71,4.83769532]
[1756533855113,5.23460606,206.74,206.72,38.82]
[1756533855324,5.23460606,206.74,206.69,4.83793581]
[1756533855530,5.23460606,206.73,206.7,38.82]
[1756533856024,0.67,206.72,206.7,38.82]
[1756533856228,0.67,206.72,206.69,4.83793581]
[1756533856415,0.67,206.72,206.7,38.8]
[1756533856619,4.56460606,206.73,206.71,38.8]
[1756533856924,5.23460606,206.73,206.71,38.8]
[1756533857229,5.23460606,206.73,206.72,38.8]
[1756533857611,0.67,206.73,206.72,38.8]
[1756533857930,131.6,206.8,206.72,38.84]
[1756533857931,4.56460606,206.74,206.72,38.84]
[1756533858433,5.23460606,206.74,206.72,38.84]
[1756533858728,0.67,206.78,206.72,48.24194318]
[1756533858937,4.56460606,206.78,206.73,4.56460606]
[1756533859116,4.56460606,206.78,206.73,4.66460606]
[1756533859428,4.56460606,206.79,206.74,4.56460606]
[1756533859631,5.23460606,206.79,206.75,38.86]
[1756533860029,4.56460606,206.78,206.75,38.86]
[1756533860529,4.56460606,206.78,206.76,4.83652544]
[1756533861728,26.0,206.83,206.76,4.83652544]
[1756533861925,4.56460606,206.82,206.77,4.56460606]
[1756533862125,4.56460606,206.81,206.78,38.82]
[1756533862309,5.23460606,206.81,206.78,38.82]
[1756533863214,5.23460606,206.81,206.79,4.83582378]
[1756533863730,5.23460606,206.8,206.79,4.83582378]
[1756533865725,5.23460606,206.8,206.71,38.23583718]
[1756533865925,4.56460606,206.77,206.72,22.99766137]
[1756533866233,5.23460606,206.79,206.74,4.56460606]
[1756533866406,5.23460606,206.79,206.75,38.88]
[1756533866609,5.23460606,206.79,206.75,43.44460606]
[1756533866810,0.67,206.79,206.75,43.44460606]
[1756533867524,0.67,206.79,206.76,4.83652544]
[1756533867836,0.67,206.78,206.76,4.83652544]
[1756533868517,4.56460606,206.8,206.76,4.83652544]
[1756533868722,0.67,206.78,206.76,4.83652544]
[1756533871908,0.66,206.78,206.76,4.83652544]
[1756533872114,4.56460606,206.8,206.76,4.83652544]
[1756533872338,0.66,206.77,206.75,38.88]
[1756533872630,4.56460606,206.79,206.75,43.71672989]
[1756533872835,0.66,206.78,206.75,43.71672989]
[1756533873136,0.66,206.77,206.75,43.71672989]
[1756533874741,4.62460606,206.78,206.75,43.71672989]
[1756533874918,0.66,206.77,206.75,43.71672989]
[1756533875643,0.66,206.77,206.76,38.74]
[1756533876343,5.22460606,206.77,206.71,4.83769532]
[1756533876520,4.56460606,206.74,206.72,38.74]
[1756533877028,0.66,206.73,206.72,38.74]
[1756533879847,5.22460606,206.73,206.71,38.74]
[1756533880042,5.22460606,206.72,206.71,38.74]
[1756533882164,5.22460606,206.72,206.7,0.03]
[1756533882448,5.22460606,206.71,206.7,38.77]
[1756533882750,0.66,206.71,206.7,38.77]
[1756533884461,4.56460606,206.73,206.7,43.60792936]
[1756533884648,5.22460606,206.73,206.7,43.60792936]
[1756533885252,0.66,206.72,206.7,43.60792936]
[1756533886157,5.22460606,206.72,206.7,38.77]
[1756533887858,0.66,206.71,206.7,38.77]
[1756533888235,4.56460606,206.72,206.7,38.77]
[1756533888561,5.22460606,206.72,206.7,38.77]
[1756533889166,4.56460606,206.71,206.7,38.77]
[1756533889876,5.22460606,206.71,206.7,38.77]
[1756533892843,5.22460606,206.71,206.7,0.03]
[1756533893142,5.22460606,206.71,206.7,38.77]
[1756533894958,5.22460606,206.71,206.7,0.03]
[1756533895153,5.22460606,206.71,206.7,38.77]
[1756533897439,4.56460606,206.71,206.7,38.77]
[1756533898370,132.26,206.75,206.7,43.60786979]
[1756533898538,4.56460606,206.73,206.7,43.60786979]
[1756533898736,4.56460606,206.74,206.7,43.60786979]
[1756533899065,5.22460606,206.74,206.7,43.60786979]
[1756533899639,0.66,206.73,206.7,43.60786979]
[1756533900162,5.22460606,206.73,206.7,43.60786979]
[1756533900460,4.56460606,206.73,206.7,43.60786979]
[1756533900643,132.26,206.75,206.7,43.60786979]
[1756533900961,4.56460606,206.74,206.7,43.70786979]
[1756533901854,5.28460606,206.74,206.7,43.60786979]
[1756533902165,131.6,206.75,206.71,38.74]
[1756533902166,4.56460606,206.72,206.71,38.74]
[1756533902349,131.6,206.75,206.71,38.74]
[1756533902552,0.72,206.74,206.71,38.74]
[1756533902861,136.16460606,206.75,206.71,38.74]
[1756533903251,0.72,206.74,206.71,38.74]
[1756533903761,5.28460606,206.74,206.71,38.74]
[1756533903978,5.28460606,206.73,206.72,38.74]
[1756533904143,4.56460606,206.74,206.72,38.74]
[1756533904551,5.28460606,206.74,206.72,38.74]
[1756533904963,5.28460606,206.73,206.7,0.03]
[1756533905164,131.6,206.75,206.71,38.74]
[1756533905380,5.28460606,206.74,206.71,38.74]
[1756533906340,26.0,206.71,206.7,0.03]
[1756533906742,31.28460606,206.71,206.7,0.03]
[1756533906955,5.28460606,206.71,206.7,0.03]
[1756533907147,31.28460606,206.71,206.7,0.03]
[1756533909072,31.67924715,206.71,206.7,0.03]
[1756533909377,39.59559401,206.66,206.65,0.03]
[1756533909548,86.27812146,206.66,206.56,38.72]
[1756533909877,26.0,206.63,206.53,4.56460606]
[1756533910078,30.56460606,206.61,206.55,38.75]
[1756533910568,31.28460606,206.61,206.55,38.75]
[1756533911360,31.28460606,206.61,206.55,43.59132379]
[1756533911958,0.72,206.61,206.57,4.59460606]
[1756533912159,0.72,206.61,206.58,4.87073966]
[1756533914257,0.72,206.61,206.58,0.03]
[1756533914580,5.28460606,206.63,206.58,0.03]
[1756533915073,0.72,206.62,206.58,0.03]
[1756533915757,4.56460606,206.63,206.58,4.59460606]
[1756533915964,4.56460606,206.63,206.58,0.03]
[1756533915965,0.72,206.61,206.58,0.03]
[1756533918285,5.28460606,206.61,206.58,0.03]
[1756533922855,26.0,206.59,206.58,0.03]
[1756533923053,30.56460606,206.59,206.58,0.03]
[1756533923263,31.28460606,206.59,206.58,0.03]
[1756533924587,26.72,206.59,206.58,0.03]
[1756533924787,31.28460606,206.59,206.58,0.03]
[1756533925998,26.72,206.59,206.58,0.03]
[1756533926190,31.28460606,206.59,206.58,0.03]
[1756533926574,26.72,206.59,206.58,0.03]
[1756533926775,31.28460606,206.59,206.58,0.03]
[1756533933101,49.86286698,206.59,206.58,0.03]
[1756533934683,13.73775558,206.58,206.57,0.03]
[1756533934879,57.02236164,206.58,206.57,0.03]